[Event "Najdorf Memorial-B 2022"]
[Site "Warsaw"]
[Date "2022.07.15"]
[Round "7.9"]
[White "Wieckowski, Michal"]
[Black "Tomalak, Stanislaw"]
[Result "1-0"]
[ECO "A53"]
[WhiteElo "1669"]
[BlackElo "1554"]
[Annotator "NA"]
[PlyCount "63"]
[EventDate "2022.07.09"]
[EventType "swiss"]
[EventCountry "POL"]
[SourceTitle "playchess.com"]
[Source "ChessBase"]
[SourceQuality "1"]
[TimeControl "40/5400+30:1800+30"]

1. d4 {[%emt 0:00:03]} Nf6 {[%emt 0:00:10]} 2. c4 {[%emt 0:00:03]} d6 {[%emt 0:00:22]} 3. Nc3 {[%emt 0:00:06]} Nbd7 {[%emt 0:00:10]} 4. e4 {[%emt 0:00:22]} e5 {[%emt 0:00:23]} 5. d5 {[%emt 0:00:11]} Nc5 {[%emt 0:00:20]} 6. f3 {[%emt 0:00:24]} a5 {[%emt 0:00:10]} 7. Be3 {[%emt 0:00:27]} b6 {[%emt 0:00:13]} 8. Qd2 {[%emt 0:00:24]} Bd7 {[%emt 0:01:07]} 9. O-O-O {[%emt 0:02:17]} Be7 {[%emt 0:06:29]} 10. g4 {[%emt 0:03:50]} Ng8 {[%emt 0:08:52]} 11. Nge2 {[%emt 0:17:23]} h6 {[%emt 0:02:56]} 12. Kb1 {[%emt 0:13:42]} g6 {[%emt 0:07:29]} 13. h4 {[%emt 0:09:01]} f5 {[%emt 0:14:27]} 14. h5 {[%emt 0:09:10]} f4 {[%emt 0:02:12]} 15. Bxc5 {[%emt 0:04:41]} bxc5 {[%emt 0:02:39]} 16. hxg6 {[%emt 0:00:12]} Bg5 {[%emt 0:00:58]} 17. Nb5 Ne7 {[%emt 0:00:48]} 18. g7 {[%emt 0:03:58]} Rg8 {[%emt 0:02:21]} 19. Qe1 {[%emt 0:02:13]} a4 {[%emt 0:03:30]} 20. Rd3 {[%emt 0:01:54]} Nc8 {[%emt 0:06:42]} 21. Ra3 {[%emt 0:02:20]} Nb6 {[%emt 0:00:50]} 22. Nec3 {[%emt 0:00:21]} Kf7 {[%emt 0:05:34]} 23. Qd1 {[%emt 0:01:16]} Kxg7 {[%emt 0:05:09]} 24. Nxa4 {[%emt 0:00:36]} Bxb5 {[%emt 0:02:53]} 25. cxb5 {[%emt 0:00:08]} Qb8 {[%emt 0:03:55]} 26. Qc2 {[%emt 0:13:17]} Ra5 {[%emt 0:02:33]} 27. Nxc5 {[%emt 0:01:40]} Rxa3 {[%emt 0:01:00]} 28. Ne6+ {[%emt 0:00:05]} Kg6 {[%emt 0:02:03]} 29. bxa3 {[%emt 0:00:08]} Rc8 {[%emt 0:02:01]} 30. Qh2 {[%emt 0:02:30]} Rg8 {[%emt 0:05:04]} 31. Nxg5 {[%emt 0:00:59]} hxg5 {[%emt 0:00:40]} 32. Qh7+ {[%emt 0:00:08]} 1-0

[Event "Najdorf Memorial-B 2022"]
[Site "Warsaw"]
[Date "2022.07.15"]
[Round "7.10"]
[White "Carrieri, Maurizio"]
[Black "Matskevich, Varvara"]
[Result "1-0"]
[ECO "D10"]
[WhiteElo "1666"]
[BlackElo "1467"]
[Annotator "NA"]
[PlyCount "93"]
[EventDate "2022.07.09"]
[EventType "swiss"]
[EventCountry "POL"]
[SourceTitle "playchess.com"]
[Source "ChessBase"]
[SourceQuality "1"]
[TimeControl "40/5400+30:1800+30"]

1. d4 {[%emt 0:00:03]} d5 {[%emt 0:00:26]} 2. c4 {[%emt 0:00:08]} c6 {[%emt 0:00:37]} 3. cxd5 {[%emt 0:00:06]} cxd5 {[%emt 0:00:40]} 4. Nc3 {[%emt 0:00:10]} Nc6 {[%emt 0:00:47]} 5. Bf4 {[%emt 0:00:18]} Nf6 {[%emt 0:00:40]} 6. e3 {[%emt 0:03:16]} a6 {[%emt 0:00:17]} 7. Bd3 {[%emt 0:03:36]} e6 {[%emt 0:01:42]} 8. Nf3 {[%emt 0:03:28]} Be7 {[%emt 0:00:39]} 9. Rc1 {[%emt 0:05:26]} O-O {[%emt 0:01:24]} 10. Bg3 {[%emt 0:03:37]} Ne8 {[%emt 0:03:28]} 11. O-O {[%emt 0:04:10]} f5 {[%emt 0:01:50]} 12. Bb1 {[%emt 0:09:43]} Nf6 {[%emt 0:03:06]} 13. Na4 {[%emt 0:08:01]} Bd7 {[%emt 0:03:45]} 14. Nc5 {[%emt 0:04:00]} Bxc5 {[%emt 0:01:24]} 15. Rxc5 {[%emt 0:00:08]} Qb6 {[%emt 0:00:38]} 16. b3 {[%emt 0:04:45]} Ne4 {[%emt 0:01:44]} 17. Bxe4 {[%emt 0:03:38]} fxe4 {[%emt 0:00:10]} 18. Ne5 {[%emt 0:00:18]} Nxe5 {[%emt 0:00:19]} 19. Bxe5 {[%emt 0:00:07]} Rac8 {[%emt 0:00:49]} 20. Rxc8 {[%emt 0:04:08]} Rxc8 {[%emt 0:00:12]} 21. Qg4 {[%emt 0:00:17]} g6 {[%emt 0:00:11]} 22. Qg5 {[%emt 0:02:11]} Qd8 {[%emt 0:00:39]} 23. Qxd8+ {[%emt 0:00:14]} Rxd8 {[%emt 0:00:07]} 24. Rc1 {[%emt 0:00:06]} Bc6 {[%emt 0:00:39]} 25. g4 {[%emt 0:03:37]} h6 {[%emt 0:02:02]} 26. h4 {[%emt 0:00:40]} Kf7 {[%emt 0:01:14]} 27. g5 {[%emt 0:00:10]} h5 {[%emt 0:00:26]} 28. Kg2 {[%emt 0:01:37]} Rc8 {[%emt 0:00:37]} 29. Kg3 {[%emt 0:00:44]} Bd7 {[%emt 0:00:09]} 30. Rxc8 {[%emt 0:01:59]} Bxc8 {[%emt 0:00:08]} 31. Bd6 {[%emt 0:01:32]} Bd7 {[%emt 0:00:27]} 32. Kf4 {[%emt 0:00:13]} Bb5 {[%emt 0:00:21]} 33. Ke5 {[%emt 0:00:39]} Be2 {[%emt 0:00:14]} 34. Bb4 {[%emt 0:00:54]} Bd3 {[%emt 0:00:49]} 35. Bc5 {[%emt 0:01:25]} Bb1 {[%emt 0:01:14]} 36. a3 {[%emt 0:00:08]} Ba2 {[%emt 0:00:06]} 37. b4 {[%emt 0:00:05]} Bc4 {[%emt 0:00:10]} 38. Kd6 {[%emt 0:00:16]} a5 {[%emt 0:01:25]} 39. Kc7 {[%emt 0:01:43]} Ba6 {[%emt 0:02:22]} 40. Kb6 {[%emt 0:00:00]} axb4 {[%emt 0:00:00]} 41. axb4 {[%emt 0:00:23]} Ke8 {[%emt 0:00:38]} 42. b5 {[%emt 0:00:10]} Bxb5 {[%emt 0:00:05]} 43. Kxb5 {[%emt 0:00:05]} Kd7 {[%emt 0:00:03]} 44. Kb6 {[%emt 0:00:49]} Kc8 {[%emt 0:00:08]} 45. Bd6 {[%emt 0:00:26]} Kd7 {[%emt 0:00:06]} 46. Bf4 {[%emt 0:00:10]} Kc8 {[%emt 0:00:19]} 47. Be5 1-0

[Event "Najdorf Memorial-B 2022"]
[Site "Warsaw"]
[Date "2022.07.15"]
[Round "7.11"]
[White "Bartoszczuk, Adam"]
[Black "Shaparau, Maxim"]
[Result "1-0"]
[ECO "B41"]
[WhiteElo "1596"]
[BlackElo "1202"]
[Annotator "NA"]
[PlyCount "73"]
[EventDate "2022.07.09"]
[EventType "swiss"]
[EventCountry "POL"]
[SourceTitle "playchess.com"]
[Source "ChessBase"]
[SourceQuality "1"]
[TimeControl "40/5400+30:1800+30"]

1. e4 {[%emt 0:00:01]} c5 {[%emt 0:01:24]} 2. Nf3 {[%emt 0:00:04]} e6 {[%emt 0:00:27]} 3. d4 {[%emt 0:00:11]} cxd4 {[%emt 0:00:01]} 4. Nxd4 {[%emt 0:00:01]} a6 {[%emt 0:00:07]} 5. c4 {[%emt 0:00:43]} Nf6 {[%emt 0:00:07]} 6. Nc3 {[%emt 0:00:15]} Qc7 {[%emt 0:00:01]} 7. a3 {[%emt 0:00:31]} b6 {[%emt 0:00:09]} 8. Be2 {[%emt 0:00:35]} Bb7 {[%emt 0:00:06]} 9. f3 {[%emt 0:00:06]} Nc6 {[%emt 0:00:13]} 10. Be3 {[%emt 0:00:38]} Be7 {[%emt 0:00:03]} 11. O-O {[%emt 0:00:31]} O-O {[%emt 0:00:26]} 12. Rc1 {[%emt 0:02:36]} Nxd4 {[%emt 0:01:32]} 13. Bxd4 {[%emt 0:00:31]} Bc5 {[%emt 0:04:41]} 14. b4 {[%emt 0:01:23]} Bxd4+ {[%emt 0:00:43]} 15. Qxd4 {[%emt 0:00:03]} Rab8 {[%emt 0:12:30]} 16. e5 {[%emt 0:04:03]} Ne8 {[%emt 0:01:13]} 17. Rfd1 {[%emt 0:00:49]} f6 {[%emt 0:07:01]} 18. Na4 {[%emt 0:07:49]} Qxe5 {[%emt 0:08:00]} 19. Qxe5 {[%emt 0:02:08]} fxe5 {[%emt 0:00:04]} 20. Nxb6 {[%emt 0:00:26]} Bxf3 {[%emt 0:10:19]} 21. Nxd7 {[%emt 0:07:04]} Bxe2 {[%emt 0:00:39]} 22. Re1 {[%emt 0:00:12]} Bxc4 {[%emt 0:07:30]} 23. Rxc4 {[%emt 0:00:46]} Nf6 {[%emt 0:05:25]} 24. Nxb8 {[%emt 0:00:39]} Rxb8 {[%emt 0:00:02]} 25. Rxe5 {[%emt 0:00:12]} Rb6 {[%emt 0:00:39]} 26. Rec5 {[%emt 0:01:34]} Kf7 {[%emt 0:00:11]} 27. Rc6 {[%emt 0:00:17]} Rb5 {[%emt 0:01:46]} 28. R4c5 {[%emt 0:01:27]} Ne4 {[%emt 0:00:59]} 29. Rxb5 {[%emt 0:02:09]} axb5 {[%emt 0:00:01]} 30. Kf1 {[%emt 0:03:15]} Kf6 {[%emt 0:04:45]} 31. Ke2 {[%emt 0:01:12]} h5 {[%emt 0:03:24]} 32. Rb6 {[%emt 0:02:23]} g5 {[%emt 0:02:21]} 33. Ke3 {[%emt 0:03:53]} Nc3 {[%emt 0:05:25]} 34. Kd3 {[%emt 0:00:09]} Nd5 {[%emt 0:00:54]} 35. Rxb5 {[%emt 0:00:12]} Ke5 {[%emt 0:00:12]} 36. a4 {[%emt 0:01:23]} g4 {[%emt 0:01:21]} 37. g3 {[%emt 0:02:01]} 1-0

[Event "Najdorf Memorial-B 2022"]
[Site "Warsaw"]
[Date "2022.07.15"]
[Round "7.12"]
[White "Marczuk, Wojciech"]
[Black "Gajewski, Dariusz"]
[Result "1/2-1/2"]
[ECO "A51"]
[WhiteElo "1324"]
[BlackElo "1697"]
[Annotator "NA"]
[PlyCount "78"]
[EventDate "2022.07.09"]
[EventType "swiss"]
[EventCountry "POL"]
[SourceTitle "playchess.com"]
[Source "ChessBase"]
[SourceQuality "1"]
[TimeControl "40/5400+30:1800+30"]

1. d4 {[%emt 0:00:03]} Nf6 {[%emt 0:00:07]} 2. c4 {[%emt 0:00:05]} e5 {[%emt 0:00:04]} 3. dxe5 {[%emt 0:00:16]} Ne4 {[%emt 0:00:26]} 4. Nf3 {[%emt 0:05:54]} d6 {[%emt 0:01:16]} 5. exd6 {[%emt 0:05:11]} Bxd6 {[%emt 0:00:12]} 6. Qd4 {[%emt 0:08:26]} Bb4+ {[%emt 0:03:51]} 7. Nbd2 {[%emt 0:02:26]} Qxd4 {[%emt 0:00:37]} 8. Nxd4 {[%emt 0:00:07]} O-O {[%emt 0:00:46]} 9. a3 {[%emt 0:03:34]} Bxd2+ {[%emt 0:01:28]} 10. Bxd2 {[%emt 0:00:09]} Nxd2 {[%emt 0:00:37]} 11. Kxd2 {[%emt 0:00:05]} Rd8 {[%emt 0:00:10]} 12. Kc3 {[%emt 0:00:17]} Na6 {[%emt 0:00:13]} 13. b4 {[%emt 0:05:12]} c5 {[%emt 0:02:23]} 14. Nf3 {[%emt 0:01:39]} cxb4+ {[%emt 0:00:25]} 15. axb4 {[%emt 0:00:07]} b6 {[%emt 0:02:32]} 16. e3 {[%emt 0:01:42]} Bb7 {[%emt 0:00:19]} 17. Be2 {[%emt 0:00:27]} Nc7 {[%emt 0:01:53]} 18. Rhd1 {[%emt 0:01:23]} a6 {[%emt 0:00:50]} 19. Nh4 {[%emt 0:07:35]} Rac8 {[%emt 0:08:22]} 20. Bf3 {[%emt 0:03:25]} Bxf3 {[%emt 0:01:52]} 21. Nxf3 {[%emt 0:00:09]} Kf8 {[%emt 0:00:31]} 22. Kb3 {[%emt 0:03:33]} Ke8 {[%emt 0:00:30]} 23. Rd4 {[%emt 0:01:13]} Rxd4 {[%emt 0:00:27]} 24. exd4 {[%emt 0:00:49]} f6 {[%emt 0:00:15]} 25. d5 {[%emt 0:04:03]} Kd7 {[%emt 0:00:13]} 26. Nd4 {[%emt 0:01:15]} Re8 {[%emt 0:00:53]} 27. Kc3 {[%emt 0:06:56]} Rc8 {[%emt 0:03:17]} 28. Kd3 {[%emt 0:01:00]} g6 {[%emt 0:01:49]} 29. Re1 {[%emt 0:06:19]} b5 {[%emt 0:00:25]} 30. Nc6 {[%emt 0:04:28]} bxc4+ {[%emt 0:00:32]} 31. Kxc4 {[%emt 0:00:06]} Kd6 {[%emt 0:01:53]} 32. Rd1 {[%emt 0:04:03]} Nxd5 {[%emt 0:08:02]} 33. Rxd5+ {[%emt 0:04:35]} Kxc6 {[%emt 0:00:01]} 34. Rc5+ {[%emt 0:02:03]} Kb7 {[%emt 0:00:24]} 35. Rxc8 {[%emt 0:06:18]} Kxc8 {[%emt 0:00:01]} 36. b5 {[%emt 0:04:44]} axb5+ {[%emt 0:02:57]} 37. Kxb5 {[%emt 0:00:06]} Kd7 {[%emt 0:00:01]} 38. Kc5 {[%emt 0:00:24]} Ke6 {[%emt 0:00:01]} 39. Kd4 {[%emt 0:00:37]} Kd6 {[%emt 0:02:15]} 1/2-1/2

[Event "Najdorf Memorial-B 2022"]
[Site "Warsaw"]
[Date "2022.07.15"]
[Round "7.13"]
[White "Poniewierski, Piotr"]
[Black "Smeryk, Andriy"]
[Result "1-0"]
[ECO "A05"]
[WhiteElo "1747"]
[BlackElo "1397"]
[Annotator "NA"]
[PlyCount "145"]
[EventDate "2022.07.09"]
[EventType "swiss"]
[EventCountry "POL"]
[SourceTitle "playchess.com"]
[Source "ChessBase"]
[SourceQuality "1"]
[TimeControl "40/5400+30:1800+30"]

1. Nf3 {[%emt 0:00:19]} Nf6 {[%emt 0:00:11]} 2. c4 {[%emt 0:00:08]} e6 {[%emt 0:00:13]} 3. g3 {[%emt 0:00:21]} b6 {[%emt 0:00:32]} 4. Bg2 {[%emt 0:00:14]} Bb7 {[%emt 0:00:09]} 5. Nc3 {[%emt 0:02:06]} Be7 {[%emt 0:00:54]} 6. O-O {[%emt 0:00:44]} O-O {[%emt 0:00:25]} 7. Re1 {[%emt 0:02:31]} Bb4 {[%emt 0:24:29]} 8. Qb3 {[%emt 0:07:12]} Bxc3 {[%emt 0:00:22]} 9. Qxc3 {[%emt 0:00:23]} d6 {[%emt 0:00:23]} 10. d3 {[%emt 0:06:51]} Nbd7 {[%emt 0:01:42]} 11. e4 {[%emt 0:03:11]} e5 {[%emt 0:15:36]} 12. Qc2 {[%emt 0:08:14]} Nc5 {[%emt 0:02:26]} 13. Bd2 {[%emt 0:01:37]} Ne6 {[%emt 0:01:14]} 14. Bc3 {[%emt 0:00:15]} c5 {[%emt 0:01:41]} 15. Nh4 Nd7 16. Nf5 {[%emt 0:11:03]} Nb8 {[%emt 0:12:53]} 17. Rf1 {[%emt 0:03:35]} Nc6 {[%emt 0:02:06]} 18. Qd1 {[%emt 0:00:51]} Ncd4 {[%emt 0:07:42]} 19. Bxd4 {[%emt 0:08:26]} Nxd4 {[%emt 0:00:33]} 20. Ne3 {[%emt 0:01:40]} b5 {[%emt 0:06:28]} 21. cxb5 {[%emt 0:03:53]} Nxb5 {[%emt 0:00:08]} 22. f4 {[%emt 0:02:37]} Nd4 {[%emt 0:00:45]} 23. Qh5 {[%emt 0:05:13]} f6 {[%emt 0:01:48]} 24. f5 {[%emt 0:03:07]} Qe8 {[%emt 0:01:25]} 25. Qd1 {[%emt 0:00:15]} a5 {[%emt 0:01:23]} 26. g4 {[%emt 0:02:26]} h6 {[%emt 0:00:12]} 27. h4 {[%emt 0:01:46]} Qe7 {[%emt 0:00:20]} 28. Qd2 {[%emt 0:02:56]} Bc6 {[%emt 0:01:58]} 29. Kf2 {[%emt 0:02:18]} a4 {[%emt 0:01:31]} 30. Bf3 {[%emt 0:02:18]} Kf7 {[%emt 0:00:45]} 31. Rg1 {[%emt 0:04:56]} Rh8 {[%emt 0:01:23]} 32. Nc2 {[%emt 0:01:38]} Nb5 {[%emt 0:04:07]} 33. Rg2 {[%emt 0:02:22]} Rag8 {[%emt 0:01:24]} 34. Rag1 {[%emt 0:00:44]} g5 {[%emt 0:02:02]} 35. fxg6+ {[%emt 0:02:51]} Rxg6 {[%emt 0:00:08]} 36. Ne3 {[%emt 0:03:12]} Qd8 {[%emt 0:05:31]} 37. Qd1 {[%emt 0:01:49]} Kf8 {[%emt 0:02:42]} 38. Qxa4 {[%emt 0:01:42]} Nd4 {[%emt 0:00:13]} 39. Qc4 {[%emt 0:01:35]} Bb5 {[%emt 0:00:26]} 40. Qc3 {[%emt 0:00:00]} Bc6 {[%emt 0:00:00]} 41. Rg3 {[%emt 0:08:09]} Rhg8 {[%emt 0:04:25]} 42. Bd1 {[%emt 0:01:13]} Qb6 {[%emt 0:04:16]} 43. Ke1 {[%emt 0:05:41]} Ke8 {[%emt 0:08:44]} 44. R3g2 {[%emt 0:03:17]} Qb8 {[%emt 0:05:10]} 45. Rf1 {[%emt 0:04:54]} Qb7 {[%emt 0:01:46]} 46. h5 {[%emt 0:01:16]} R6g7 {[%emt 0:01:59]} 47. Rxf6 {[%emt 0:00:30]} Qe7 {[%emt 0:00:04]} 48. Rf1 {[%emt 0:02:04]} Qh4+ {[%emt 0:00:32]} 49. Kd2 {[%emt 0:00:56]} Bd7 {[%emt 0:01:49]} 50. Kc1 {[%emt 0:03:59]} Be6 {[%emt 0:00:16]} 51. Kb1 {[%emt 0:00:21]} Ra7 {[%emt 0:00:59]} 52. b3 {[%emt 0:00:37]} Kd7 {[%emt 0:01:15]} 53. Nf5 {[%emt 0:01:12]} Bxf5 {[%emt 0:01:50]} 54. exf5 {[%emt 0:00:20]} Qf6 {[%emt 0:00:07]} 55. Qc4 {[%emt 0:01:03]} Rb8 {[%emt 0:00:37]} 56. Rfg1 {[%emt 0:01:21]} Rb4 {[%emt 0:00:15]} 57. Qg8 {[%emt 0:01:35]} Kc6 {[%emt 0:00:54]} 58. Qe8+ {[%emt 0:00:43]} Kb6 {[%emt 0:00:24]} 59. Qg6 {[%emt 0:00:52]} Rf7 {[%emt 0:02:05]} 60. Qxf6 {[%emt 0:00:17]} Rxf6 {[%emt 0:00:00]} 61. g5 {[%emt 0:00:41]} hxg5 {[%emt 0:00:09]} 62. Rxg5 {[%emt 0:00:21]} Nxf5 {[%emt 0:00:18]} 63. Rg6 {[%emt 0:01:17]} Rf7 {[%emt 0:01:29]} 64. Bg4 {[%emt 0:00:39]} Nh4 {[%emt 0:02:41]} 65. Rxd6+ {[%emt 0:00:44]} Kc7 {[%emt 0:00:14]} 66. Re6 {[%emt 0:00:34]} Rg7 {[%emt 0:00:33]} 67. h6 Rh7 {[%emt 0:01:49]} 68. Be2 {[%emt 0:01:01]} Rd4 {[%emt 0:00:41]} 69. Rg7+ {[%emt 0:00:21]} Rd7 {[%emt 0:00:03]} 70. Rxh7 {[%emt 0:00:30]} Rxh7 {[%emt 0:00:02]} 71. Rxe5 {[%emt 0:00:36]} Rxh6 {[%emt 0:00:07]} 72. Rxc5+ {[%emt 0:00:06]} Kb6 {[%emt 0:00:18]} 73. Rh5 {[%emt 0:00:23]} 1-0

[Event "Najdorf Memorial-B 2022"]
[Site "Warsaw"]
[Date "2022.07.15"]
[Round "7.14"]
[White "Mazurkiewicz, Wojciech"]
[Black "Przybylski, Jan"]
[Result "0-1"]
[ECO "B22"]
[WhiteElo "1469"]
[BlackElo "1685"]
[Annotator "NA"]
[PlyCount "110"]
[EventDate "2022.07.09"]
[EventType "swiss"]
[EventCountry "POL"]
[SourceTitle "playchess.com"]
[Source "ChessBase"]
[SourceQuality "1"]
[TimeControl "40/5400+30:1800+30"]

1. e4 {[%emt 0:00:02]} c5 {[%emt 0:00:04]} 2. c3 {[%emt 0:00:12]} d5 {[%emt 0:00:13]} 3. exd5 {[%emt 0:00:07]} Qxd5 {[%emt 0:00:05]} 4. d4 {[%emt 0:00:09]} Nc6 {[%emt 0:00:13]} 5. Nf3 {[%emt 0:00:14]} Bf5 {[%emt 0:02:09]} 6. Na3 {[%emt 0:10:31]} e6 {[%emt 0:04:33]} 7. Bc4 {[%emt 0:04:10]} Qe4+ {[%emt 0:05:20]} 8. Be3 {[%emt 0:03:02]} cxd4 {[%emt 0:04:37]} 9. cxd4 {[%emt 0:02:02]} Bb4+ {[%emt 0:01:12]} 10. Ke2 {[%emt 0:03:02]} Nge7 {[%emt 0:07:13]} 11. Bd3 {[%emt 0:06:08]} Qxd3+ {[%emt 0:03:00]} 12. Qxd3 {[%emt 0:00:08]} Bxd3+ {[%emt 0:00:02]} 13. Kxd3 {[%emt 0:00:03]} Bxa3 {[%emt 0:00:17]} 14. bxa3 {[%emt 0:00:14]} Rd8 {[%emt 0:04:34]} 15. Rhd1 {[%emt 0:02:39]} O-O {[%emt 0:04:00]} 16. Ke2 {[%emt 0:01:54]} Rd5 {[%emt 0:00:59]} 17. Rac1 {[%emt 0:09:38]} Rfd8 {[%emt 0:01:47]} 18. Ne5 {[%emt 0:06:51]} Nxe5 {[%emt 0:10:18]} 19. dxe5 {[%emt 0:00:10]} Rxd1 {[%emt 0:00:05]} 20. Rxd1 {[%emt 0:00:17]} Rxd1 {[%emt 0:00:02]} 21. Kxd1 {[%emt 0:00:12]} Nc6 {[%emt 0:00:01]} 22. f4 {[%emt 0:02:30]} Kf8 {[%emt 0:03:43]} 23. Kc2 {[%emt 0:00:47]} Ke7 {[%emt 0:00:45]} 24. Bc5+ {[%emt 0:02:39]} Kd7 {[%emt 0:00:33]} 25. Kc3 {[%emt 0:02:21]} Kc7 {[%emt 0:01:19]} 26. Kc4 {[%emt 0:04:21]} b6 {[%emt 0:01:02]} 27. Bd6+ {[%emt 0:01:17]} Kb7 {[%emt 0:00:14]} 28. g4 {[%emt 0:01:59]} Na5+ {[%emt 0:01:17]} 29. Kd4 {[%emt 0:01:28]} Kc6 {[%emt 0:00:58]} 30. f5 {[%emt 0:09:25]} Nb7 {[%emt 0:04:23]} 31. Bf8 {[%emt 0:01:48]} g6 {[%emt 0:00:16]} 32. fxe6 {[%emt 0:01:59]} fxe6 {[%emt 0:10:18]} 33. Kc4 {[%emt 0:06:18]} Nd8 {[%emt 0:01:23]} 34. h4 {[%emt 0:02:49]} Nf7 {[%emt 0:05:02]} 35. Kd4 {[%emt 0:00:50]} Kb5 {[%emt 0:00:49]} 36. g5 {[%emt 0:05:51]} Nd8 {[%emt 0:01:15]} 37. Bd6 {[%emt 0:02:42]} Nc6+ {[%emt 0:00:23]} 38. Kc3 {[%emt 0:01:07]} a5 {[%emt 0:00:55]} 39. Bc7 {[%emt 0:02:12]} Kc5 {[%emt 0:03:14]} 40. a4 {[%emt 0:00:00]} Na7 {[%emt 0:00:00]} 41. Bd6+ {[%emt 0:06:54]} Kd5 {[%emt 0:01:19]} 42. Bc7 {[%emt 0:05:52]} Nc8 {[%emt 0:05:23]} 43. Kd3 {[%emt 0:02:30]} Kc6 {[%emt 0:03:39]} 44. Bd8 {[%emt 0:00:12]} Kd7 {[%emt 0:01:13]} 45. Bf6 {[%emt 0:00:09]} Na7 {[%emt 0:01:36]} 46. Kc4 {[%emt 0:00:28]} Nc6 {[%emt 0:01:02]} 47. Kb5 {[%emt 0:01:48]} Kc7 {[%emt 0:00:30]} 48. Kc4 {[%emt 0:00:34]} Nb4 {[%emt 0:01:31]} 49. a3 {[%emt 0:00:50]} Nd5 {[%emt 0:00:24]} 50. Kd4 {[%emt 0:08:30]} Kc6 {[%emt 0:00:33]} 51. Ke4 {[%emt 0:02:15]} Kc5 {[%emt 0:00:24]} 52. Kf3 {[%emt 0:00:51]} Kc4 {[%emt 0:03:12]} 53. Kg4 {[%emt 0:00:27]} Kb3 {[%emt 0:00:26]} 54. h5 {[%emt 0:01:12]} Kxa3 {[%emt 0:00:17]} 55. hxg6 {[%emt 0:00:30]} hxg6 {[%emt 0:00:17]} 0-1

[Event "Najdorf Memorial-B 2022"]
[Site "Warsaw"]
[Date "2022.07.15"]
[Round "7.15"]
[White "Chiszko, Oskar"]
[Black "Kowalski, Witold"]
[Result "1-0"]
[ECO "B92"]
[WhiteElo "1446"]
[BlackElo "1673"]
[Annotator "NA"]
[PlyCount "55"]
[EventDate "2022.07.09"]
[EventType "swiss"]
[EventCountry "POL"]
[SourceTitle "playchess.com"]
[Source "ChessBase"]
[SourceQuality "1"]
[TimeControl "40/5400+30:1800+30"]

1. e4 {[%emt 0:00:01]} c5 {[%emt 0:00:06]} 2. Nf3 {[%emt 0:00:07]} d6 {[%emt 0:00:03]} 3. d4 {[%emt 0:00:05]} cxd4 {[%emt 0:00:06]} 4. Nxd4 {[%emt 0:00:05]} Nf6 {[%emt 0:00:07]} 5. Nc3 {[%emt 0:00:07]} a6 {[%emt 0:00:06]} 6. Be2 {[%emt 0:00:09]} e5 {[%emt 0:00:07]} 7. Nb3 {[%emt 0:00:04]} Be7 {[%emt 0:00:21]} 8. Be3 {[%emt 0:00:06]} O-O {[%emt 0:07:34]} 9. g4 {[%emt 0:00:41]} Be6 {[%emt 0:11:54]} 10. g5 {[%emt 0:00:30]} Nfd7 {[%emt 0:00:50]} 11. Qd2 {[%emt 0:00:38]} Qc7 {[%emt 0:17:15]} 12. O-O-O {[%emt 0:00:44]} b5 {[%emt 0:00:33]} 13. a3 {[%emt 0:07:36]} Rc8 {[%emt 0:09:49]} 14. Kb1 {[%emt 0:01:45]} Nb6 {[%emt 0:08:21]} 15. Bxb6 {[%emt 0:00:55]} Qxb6 {[%emt 0:00:21]} 16. h4 {[%emt 0:01:01]} Nd7 {[%emt 0:12:18]} 17. h5 {[%emt 0:06:04]} g6 {[%emt 0:18:16]} 18. hxg6 {[%emt 0:00:36]} hxg6 {[%emt 0:01:42]} 19. f4 {[%emt 0:08:13]} Nc5 {[%emt 0:06:05]} 20. Nxc5 {[%emt 0:00:16]} Qxc5 {[%emt 0:00:35]} 21. f5 {[%emt 0:00:34]} gxf5 {[%emt 0:03:20]} 22. g6 {[%emt 0:00:20]} f4 {[%emt 0:01:06]} 23. gxf7+ {[%emt 0:00:06]} Kxf7 {[%emt 0:00:20]} 24. Bh5+ {[%emt 0:00:07]} Kf8 {[%emt 0:00:24]} 25. Nd5 {[%emt 0:00:49]} Bxd5 {[%emt 0:00:39]} 26. exd5 {[%emt 0:00:01]} Bf6 {[%emt 0:00:36]} 27. Qd3 {[%emt 0:00:05]} Rc7 {[%emt 0:00:33]} 28. Qf5 {[%emt 0:00:09]} 1-0

[Event "Najdorf Memorial-B 2022"]
[Site "Warsaw"]
[Date "2022.07.15"]
[Round "7.16"]
[White "Kobus, Stanislaw"]
[Black "Szymkiewicz, Witold"]
[Result "0-1"]
[ECO "A06"]
[WhiteElo "1427"]
[BlackElo "1642"]
[Annotator "NA"]
[PlyCount "87"]
[EventDate "2022.07.09"]
[EventType "swiss"]
[EventCountry "POL"]
[SourceTitle "playchess.com"]
[Source "ChessBase"]
[SourceQuality "1"]
[TimeControl "40/5400+30:1800+30"]

1. Nf3 {[%emt 0:15:28]} d5 {[%emt 0:01:59]} 2. g3 {[%emt 0:01:48]} Nc6 {[%emt 0:00:19]} 3. d4 {[%emt 0:00:19]} Bg4 {[%emt 0:01:55]} 4. Bg2 {[%emt 0:00:11]} Nf6 {[%emt 0:00:25]} 5. Nc3 {[%emt 0:02:35]} e6 {[%emt 0:00:55]} 6. O-O {[%emt 0:01:02]} Be7 {[%emt 0:02:34]} 7. a3 {[%emt 0:02:44]} O-O {[%emt 0:05:16]} 8. Bg5 {[%emt 0:06:43]} h6 {[%emt 0:01:49]} 9. Bxf6 {[%emt 0:00:18]} Bxf6 {[%emt 0:00:10]} 10. e3 {[%emt 0:01:22]} Bh5 {[%emt 0:16:26]} 11. Qd3 {[%emt 0:03:42]} Bg6 {[%emt 0:02:04]} 12. Qb5 {[%emt 0:04:13]} a6 {[%emt 0:03:51]} 13. Qe2 {[%emt 0:05:38]} b5 {[%emt 0:04:21]} 14. Na2 {[%emt 0:03:04]} Na5 {[%emt 0:00:45]} 15. b3 {[%emt 0:09:12]} Qe7 {[%emt 0:08:57]} 16. Qd2 {[%emt 0:00:16]} Nb7 {[%emt 0:00:43]} 17. Nb4 {[%emt 0:01:02]} c5 {[%emt 0:00:25]} 18. Nc6 {[%emt 0:01:06]} Qd6 {[%emt 0:00:19]} 19. Nce5 {[%emt 0:00:29]} Be4 {[%emt 0:02:52]} 20. Rfc1 {[%emt 0:03:25]} Rfc8 {[%emt 0:02:04]} 21. a4 {[%emt 0:01:48]} cxd4 {[%emt 0:02:19]} 22. exd4 {[%emt 0:00:09]} b4 {[%emt 0:01:12]} 23. c4 {[%emt 0:04:32]} Bxf3 {[%emt 0:04:00]} 24. Nxf3 {[%emt 0:04:37]} Na5 {[%emt 0:02:46]} 25. c5 {[%emt 0:01:04]} Qb8 {[%emt 0:00:10]} 26. Qd3 {[%emt 0:01:00]} Re8 {[%emt 0:03:40]} 27. c6 {[%emt 0:02:48]} Qd6 {[%emt 0:01:27]} 28. c7 {[%emt 0:01:24]} Rec8 {[%emt 0:00:16]} 29. Rc2 {[%emt 0:02:23]} Rxc7 {[%emt 0:01:29]} 30. Rac1 {[%emt 0:00:10]} Rac8 {[%emt 0:00:05]} 31. Rxc7 {[%emt 0:01:48]} Rxc7 {[%emt 0:00:16]} 32. Rxc7 {[%emt 0:00:11]} Qxc7 {[%emt 0:00:07]} 33. Qxa6 {[%emt 0:00:14]} Qc1+ {[%emt 0:01:13]} 34. Bf1 {[%emt 0:00:07]} Nxb3 35. Kg2 {[%emt 0:00:25]} g6 {[%emt 0:01:55]} 36. Qa7 {[%emt 0:03:10]} Qc3 {[%emt 0:00:48]} 37. a5 {[%emt 0:03:27]} Nxd4 {[%emt 0:00:26]} 38. Qb8+ {[%emt 0:00:32]} Kg7 {[%emt 0:00:19]} 39. Ne5 {[%emt 0:00:38]} Nb3 {[%emt 0:10:19]} 40. a6 {[%emt 0:00:00]} Bxe5 {[%emt 0:00:00]} 41. a7 {[%emt 0:02:22]} Bxb8 {[%emt 0:00:41]} 42. axb8=Q Nd2 43. Bb5 {[%emt 0:02:38]} b3 {[%emt 0:01:16]} 44. Be8 {[%emt 0:00:27]} 0-1